Workbook

Sheet Simulador
B2: SIMULADOR PARA TARJETAS DE CRÉDITO
C5: Tarjeta | D5: → | E5: Tarjeta Ripley MasterCard
C7: Origen de compra | D7: → | E7: Tienda Ripley
C9: Tipo de producto | D9: → | E9: Mercadería en general (Ripley)
C11: Operación | D11: → | E11: Compra en cuotas
C13: Monto S/ | D13: → | E13: 1000
C15: Plazo (máx 48) | D15: → | E15: 12
C17: Cuota Mensual(2) S/ | E17: =IFERROR(IF(E13<=0,"Seleccionar Monto",IF(AND(E15<=0,selección="cuotas"),"Seleccionar Plazo",IF(AND(E11="Revolvente",E13>0),Cronograma!V2,IF(AND(E11="Compra en cuotas",E13>0),Cronograma!D11,'Cronograma Pago diferido'!D11)))),"") -> 135.360651
C19: TEA (3) | E19: =IF(AND(E7="Ripley.com y/o Ripley App",E15=12),"41,30%",IF(AND(E7="Tienda Ripley",E9="Electrohogar y/o Decohogar (Ripley)",E15=12),"41,30%","101,86%")) -> 101,86%
C21: TCEA (4) | E21: =IFERROR(IF(E11="Revolvente",Cronograma!Y10,IF(E11="Pago diferido",'Cronograma Pago diferido'!L10,Cronograma!L10)),"Seleccionar Monto") -> 1.713529593
B23: El costo total del consumo en el plazo elegido es:
C26: Total Intereses S/ (5) | E26: =IF(AND(selección="Cuotas",E13<=0),"Seleccionar Monto",IF(AND(selección="Cuotas",E15=""),"Seleccionar Plazo",IF(E11="Revolvente",0,IF(E11="Compra en cuotas",Cronograma!F64,'Cronograma Pago diferido'!F66)))) -> 433.5278117
C28: Total Gastos S/ (6) | E28: =IF(E13<=0,"Seleccionar Monto",IF(AND(E11="Cuotas",E15<=0),"Seleccionar Plazo",IF(E11="Compra en cuotas",Cronograma!H64,IF(E11="Revolvente",Cronograma!D9,'Cronograma Pago diferido'!H66)))) -> 164.4551508
C30: Costo Efectivo S/ (7) | E30: =IFERROR(IF(OR(E26="Seleccionar Plazo",E28="Seleccionar Plazo"),"Seleccionar Plazo",IF(OR(E26="Seleccionar Monto",E28="Seleccionar Monto"),"Seleccionar Monto",(E26+E28))),"Pendiente Selección") -> 597.9829626
B34: (1) Para el cálculo revolvente (Sin cuotas), solo incluye la comisión de Seguro de desgravamen
B35: (2) Sujeto a tipo de tarjeta y fecha de corte. La cuota mensual incluye gastos (Seguro de desgravamen)
B36: (3) Tasa efectiva anual.
B37: (4) Tasa de costo efectiva anual.
B38: (5) Total de intereses generados en el plazo elegido
B39: (6) Total de costos (Seguro de desgravamen) generados en el plazo elegido. 4.20% sobre el saldo deudor promedio diario. Se considera no realiza otros movimientos.
B40: (7)Suma del total de intereses + total de gastos

Sheet Cronograma Pago diferido (hidden)
C2: Monto | D2: =+Simulador!E13 -> 1000 | P2: Monto | Q2: =+D2 -> 1000 | T2: Monto Total | V2: =+Q2+D9 -> 1015.9
C3: Nro de Cuotas | D3: =+Simulador!E15 -> 12 | G3: Revolving | P3: Nro de Cuotas | Q3: =+Simulador!E15 -> 12 | T3: Revolving
C4: TEA | D4: =+Simulador!E19 -> 101,86% | G4: Intereses (30 días) >>>> | I4: =+D2*D6*30 -> 60.28069904 | P4: TEA | Q4: =+D4 -> 101,86% | T4: Intereses (30 días) >>>> | V4: =+Q2*Q6*30 -> 60.28069904 | W4: =+V4-S18 -> -7.105427358e-14
C5: TEM | D5: =+(1+D4)^(0.0833333333333333)-1 -> 0.06028069904 | P5: TEM | Q5: =+(1+Q4)^(0.0833333333333333)-1 -> 0.06028069904
C6: Factor Conversión Diaria | D6: =+D5*0.0333333333333333 -> 0.002009356635 | P6: Factor Conversión Diaria | Q6: =+Q5*0.0333333333333333 -> 0.002009356635
C7: Factor Actualización | D7: =SUM(C15:C65) -> 8.37095723 | P7: Factor Actualización
C8: Cuota | D8: =+D2/D7 -> 119.460651 | E8: =+D17/D7 -> 134.2970857 | F8: >>> Cuota estimada con intereses capitalizados por pago diferido | P8: Cuota
C9: Desgravamen | D9: 15.9 | P9: Desgravamen
C10: Membresía | D10: 68 | J10: >>>> | K10: TCEA | L10: =(1+IRR(L15:L65))^12-1 -> 2.438640908 | P10: Membresía | S10: Pago Mínimo | T10: 30 | W10: >>>> | X10: TCEA | Y10: =(1+IRR(Y15:Y29))^12-1 -> 1.554521387
C11: Cuota TOTAL | D11: =+E8+D9 -> 150.1970857 | P11: Cuota TOTAL | S11: Fracción de Capital | T11: 24
A14: # | B14: N° | C14: Factor de Actualización | D14: Capital | E14: Amortización | F14: Interés | G14: Cuota | H14: Desgravamen | I14: Membresía | J14: Cuota Total | N14: # | O14: N° | P14: Factor de Actualización | Q14: Capital | R14: Amortización r | S14: Interés r | T14: Cuota r | U14: Desgravamen | V14: Membresía | W14: Cuota Total
A15: 0 | B15: 0 | D15: =+$D$2 -> 1000 | L15: =-D15 -> -1000 | N15: 0 | O15: 0 | Q15: =+$D$2 -> 1000 | Y15: =-Q15 -> -1000
D16: =+D15-E16 -> 1060.280699 | E16: =+G16-F16 -> -60.28069904 | F16: =+D15*D5 -> 60.28069904
D17: =+D16-E17 -> 1124.195161 | E17: =+G17-F17 -> -63.91446172 | F17: =+D16*D5 -> 63.91446172
A18: =+A15+1 -> 1 | B18: =+IF(A18<=$D$3,B15+1,0) -> 1 | C18: =+IF(A18<=$D$3,(1/(1+$D$5)^B18),0) -> 0.9431464714 | D18: =+IF(A18<=$D$3,D17-E18,0) -> 1057.665345 | E18: =IF(A18<=$D$3,G18-F18,0) -> 66.52981558 | F18: =IF(A18<=$D$3,D17*$D$5,0) -> 67.76727015 | G18: =IF(A18<=$D$3,$E$8,0) -> 134.2970857 | H18: =IF(D15*3.5%>15.9,15.9,D15*3.5%) -> 15.9 | I18: =IF(OR(B18=12-2,B18=24-2,B18=36-2,B18=48-2),$D$10,0) -> 0 | J18: =+G18+H18+I18 -> 150.1970857 | L18: =+J18 -> 150.1970857 | N18: =+N15+1 -> 1 | O18: 1 | Q18: =Q15-R18 -> 958.3333333 | R18: =MIN(MAX(Q15/$T$11,$T$10),Q15) -> 41.66666667 | S18: =Q15*$Q$5 -> 60.28069904 | T18: =+R18+S18 -> 101.9473657 | U18: =IF(Q15*3.5%>13.9,13.9,Q15*3.5%) -> 13.9 | V18: =IF(OR(O18=12,O18=24,O18=36,O18=48),$D$10,0) -> 0 | W18: =+T18+U18+V18 -> 115.8473657 | Y18: =+W18 -> 115.8473657
A19: =+A18+1 -> 2 | B19: =+IF(A19<=$D$3,B18+1,0) -> 2 | C19: =+IF(A19<=$D$3,(1/(1+$D$5)^B19),0) -> 0.8895252665 | D19: =+IF(A19<=$D$3,D18-E19,0) -> 987.1250658 | E19: =IF(A19<=$D$3,G19-F19,0) -> 70.54027937 | F19: =IF(A19<=$D$3,D18*$D$5,0) -> 63.75680636 | G19: =IF(A19<=$D$3,$E$8,0) -> 134.2970857 | H19: =IF(D18*3.5%>15.9,15.9,D18*3.5%) -> 15.9 | I19: 0 | J19: =+G19+H19+I19 -> 150.1970857 | L19: =+J19 -> 150.1970857 | N19: =+N18+1 -> 2 | O19: 2 | Q19: =Q18-R19 -> 918.4027778 | R19: =MIN(MAX(Q18/$T$11,$T$10),Q18) -> 39.93055556 | S19: =Q18*$Q$5 -> 57.76900325 | T19: 97.6995588 | U19: =IF(Q18*3.5%>13.9,13.9,Q18*3.5%) -> 13.9 | V19: 0 | W19: 111.5995588 | Y19: 111.5995588
A20: 3 | B20: 3 | C20: 0.8389526163 | D20: 912.3325691 | E20: 74.79249672 | F20: =IF(A20<=$D$3,D19*$D$5,0) -> 59.50458901 | G20: 134.2970857 | H20: 15.9 | I20: 0 | J20: 150.1970857 | L20: 150.1970857 | N20: 3 | O20: 3 | Q20: 880.1359954 | R20: 38.26678241 | S20: 55.36196145 | T20: 93.62874385 | U20: 13.9 | V20: 0 | W20: 107.5287439 | Y20: 107.5287439
A21: 4 | B21: 4 | C21: 0.7912551998 | D21: 833.0315284 | E21: 79.30104071 | F21: 54.99604502 | G21: 134.2970857 | H21: 15.9 | I21: 0 | J21: 150.1970857 | L21: 150.1970857 | N21: 4 | O21: 4 | Q21: 843.4636622 | R21: 36.67233314 | S21: 53.05521305 | T21: 89.72754619 | U21: 13.9 | V21: 0 | W21: 103.6275462 | Y21: 103.6275462
A22: 5 | B22: 5 | C22: 0.7462695497 | D22: 748.9501655 | E22: 84.08136288 | F22: 50.21572286 | G22: 134.2970857 | H22: 15.9 | I22: 0 | J22: 150.1970857 | L22: 150.1970857 | N22: 5 | O22: 5 | Q22: 808.319343 | R22: 35.14431926 | S22: 50.84457918 | T22: 85.98889844 | U22: 13.9 | V22: 0 | W22: 99.88889844 | Y22: 99.88889844
A23: 6 | B23: 6 | C23: 0.7038414925 | D23: 659.8003193 | E23: 89.14984621 | F23: 45.14723952 | G23: 134.2970857 | H23: 15.9 | I23: 0 | J23: 150.1970857 | L23: 150.1970857 | N23: 6 | O23: 6 | Q23: 774.6393703 | R23: 33.67997262 | S23: 48.72605504 | T23: 82.40602767 | U23: 13.9 | V23: 0 | W23: 96.30602767 | Y23: 96.30602767
A24: 7 | B24: 7 | C24: 0.6638256201 | D24: 565.276458 | E24: 94.52386126 | F24: 39.77322448 | G24: 134.2970857 | H24: 15.9 | I24: 0 | J24: 150.1970857 | L24: 150.1970857 | N24: 7 | O24: 7 | Q24: 742.3627299 | R24: 32.27664043 | S24: 46.69580275 | T24: 78.97244318 | U24: 13.9 | V24: 0 | W24: 92.87244318 | Y24: 92.87244318
A25: 8 | B25: 8 | C25: 0.6260847912 | D25: 465.0546323 | E25: 100.2218257 | F25: 34.07526004 | G25: 134.2970857 | H25: 15.9 | I25: 0 | J25: 150.1970857 | L25: 150.1970857 | N25: 8 | O25: 8 | Q25: 711.4309495 | R25: 30.93178041 | S25: 44.7501443 | T25: 75.68192472 | U25: 13.9 | V25: 0 | W25: 89.58192472 | Y25: 89.58192472
A26: 9 | B26: 9 | C26: 0.5904896616 | D26: 358.7913649 | E26: 106.2632674 | F26: 28.03381833 | G26: 134.2970857 | H26: 15.9 | I26: 0 | J26: 150.1970857 | L26: 150.1970857 | N26: 9 | O26: 9 | Q26: 681.4309495 | R26: 30 | S26: 42.88555496 | T26: 72.88555496 | U26: 13.9 | V26: 0 | W26: 86.78555496 | Y26: 86.78555496
A27: 10 | B27: 10 | C27: 0.5569182407 | D27: 246.1224735 | E27: 112.6688914 | F27: 21.62819429 | G27: 134.2970857 | H27: =IF(D26*3.5%>15.9,15.9,D26*3.5%) -> 12.55769777 | I27: 68 | J27: 214.8547835 | L27: 214.8547835 | N27: 10 | O27: 10 | Q27: 651.4309495 | R27: 30 | S27: 41.07713399 | T27: 71.07713399 | U27: 13.9 | V27: 0 | W27: 84.97713399 | Y27: 84.97713399
A28: 11 | B28: 11 | C28: 0.5252554736 | D28: 126.6618225 | E28: 119.460651 | F28: 14.83643475 | G28: 134.2970857 | H28: 8.614286573 | I28: 0 | J28: 142.9113723 | L28: 142.9113723 | N28: 11 | O28: 11 | Q28: 621.4309495 | R28: 30 | S28: 39.26871301 | T28: 69.26871301 | U28: 13.9 | V28: 0 | W28: 83.16871301 | Y28: 83.16871301
A29: 12 | B29: 12 | C29: 0.4953928465 | D29: 3.694822226e-13 | E29: 126.6618225 | F29: 7.635263204 | G29: 134.2970857 | H29: 4.433163788 | I29: =IF(OR(B29=12-2,B29=24-2,B29=36-2,B29=48-2),$D$10,0) -> 0 | J29: 138.7302495 | L29: 138.7302495 | N29: 12 | O29: 12 | Q29: 0 | R29: =+Q28 -> 621.4309495 | S29: 37.46029204 | T29: 658.8912415 | U29: 13.9 | V29: 68 | W29: 740.7912415 | Y29: 740.7912415
A30: 13 | B30: 0 | C30: 0 | D30: 0 | E30: 0 | F30: 0 | G30: 0 | H30: 1.293187779e-14 | I30: 0 | J30: 1.293187779e-14 | L30: 1.293187779e-14
A31: 14 | B31: 0 | C31: 0 | D31: 0 | E31: 0 | F31: 0 | G31: 0 | H31: 0 | I31: 0 | J31: 0 | L31: 0
A32: 15 | B32: 0 | C32: 0 | D32: 0 | E32: 0 | F32: 0 | G32: 0 | H32: 0 | I32: 0 | J32: 0 | L32: 0
A33: 16 | B33: 0 | C33: 0 | D33: 0 | E33: 0 | F33: 0 | G33: 0 | H33: 0 | I33: 0 | J33: 0 | L33: 0
A34: 17 | B34: 0 | C34: 0 | D34: 0 | E34: 0 | F34: 0 | G34: 0 | H34: 0 | I34: 0 | J34: 0 | L34: 0
A35: 18 | B35: 0 | C35: 0 | D35: 0 | E35: 0 | F35: 0 | G35: 0 | H35: 0 | I35: 0 | J35: 0 | L35: 0
A36: 19 | B36: 0 | C36: 0 | D36: 0 | E36: 0 | F36: 0 | G36: 0 | H36: 0 | I36: 0 | J36: 0 | L36: 0
A37: 20 | B37: 0 | C37: 0 | D37: 0 | E37: 0 | F37: 0 | G37: 0 | H37: 0 | I37: 0 | J37: 0 | L37: 0
A38: 21 | B38: 0 | C38: 0 | D38: 0 | E38: 0 | F38: 0 | G38: 0 | H38: 0 | I38: 0 | J38: 0 | L38: 0
A39: 22 | B39: 0 | C39: 0 | D39: 0 | E39: 0 | F39: 0 | G39: 0 | H39: 0 | I39: 0 | J39: 0 | L39: 0
A40: 23 | B40: 0 | C40: 0 | D40: 0 | E40: 0 | F40: 0 | G40: 0 | H40: 0 | I40: 0 | J40: 0 | L40: 0
A41: 24 | B41: 0 | C41: 0 | D41: 0 | E41: 0 | F41: 0 | G41: 0 | H41: 0 | I41: 0 | J41: 0 | L41: 0
A42: 25 | B42: 0 | C42: 0 | D42: 0 | E42: 0 | F42: 0 | G42: 0 | H42: 0 | I42: 0 | J42: 0 | L42: 0
A43: 26 | B43: 0 | C43: 0 | D43: 0 | E43: 0 | F43: 0 | G43: 0 | H43: 0 | I43: 0 | J43: 0 | L43: 0
A44: 27 | B44: 0 | C44: 0 | D44: 0 | E44: 0 | F44: 0 | G44: 0 | H44: 0 | I44: 0 | J44: 0 | L44: 0
A45: 28 | B45: 0 | C45: 0 | D45: 0 | E45: 0 | F45: 0 | G45: 0 | H45: 0 | I45: 0 | J45: 0 | L45: 0
A46: 29 | B46: 0 | C46: 0 | D46: 0 | E46: 0 | F46: 0 | G46: 0 | H46: 0 | I46: 0 | J46: 0 | L46: 0
A47: 30 | B47: 0 | C47: 0 | D47: 0 | E47: 0 | F47: 0 | G47: 0 | H47: 0 | I47: 0 | J47: 0 | L47: 0
A48: 31 | B48: 0 | C48: 0 | D48: 0 | E48: 0 | F48: 0 | G48: 0 | H48: 0 | I48: 0 | J48: 0 | L48: 0
A49: 32 | B49: 0 | C49: 0 | D49: 0 | E49: 0 | F49: 0 | G49: 0 | H49: 0 | I49: 0 | J49: 0 | L49: 0
A50: 33 | B50: 0 | C50: 0 | D50: 0 | E50: 0 | F50: 0 | G50: 0 | H50: 0 | I50: 0 | J50: 0 | L50: 0
A51: 34 | B51: 0 | C51: 0 | D51: 0 | E51: 0 | F51: 0 | G51: 0 | H51: 0 | I51: 0 | J51: 0 | L51: 0
A52: 35 | B52: 0 | C52: 0 | D52: 0 | E52: 0 | F52: 0 | G52: 0 | H52: 0 | I52: 0 | J52: 0 | L52: 0
A53: 36 | B53: 0 | C53: 0 | D53: 0 | E53: 0 | F53: 0 | G53: 0 | H53: 0 | I53: 0 | J53: 0 | L53: 0
A54: 37 | B54: 0 | C54: 0 | D54: 0 | E54: 0 | F54: 0 | G54: 0 | H54: 0 | I54: 0 | J54: 0 | L54: 0
A55: 38 | B55: 0 | C55: 0 | D55: 0 | E55: 0 | F55: 0 | G55: 0 | H55: 0 | I55: 0 | J55: 0 | L55: 0
A56: 39 | B56: 0 | C56: 0 | D56: 0 | E56: 0 | F56: 0 | G56: 0 | H56: 0 | I56: 0 | J56: 0 | L56: 0
A57: 40 | B57: 0 | C57: 0 | D57: 0 | E57: 0 | F57: 0 | G57: 0 | H57: 0 | I57: 0 | J57: 0 | L57: 0
A58: 41 | B58: 0 | C58: 0 | D58: 0 | E58: 0 | F58: 0 | G58: 0 | H58: 0 | I58: 0 | J58: 0 | L58: 0
A59: 42 | B59: 0 | C59: 0 | D59: 0 | E59: 0 | F59: 0 | G59: 0 | H59: 0 | I59: 0 | J59: 0 | L59: 0
A60: 43 | B60: 0 | C60: 0 | D60: 0 | E60: 0 | F60: 0 | G60: 0 | H60: 0 | I60: 0 | J60: 0 | L60: 0
A61: 44 | B61: 0 | C61: 0 | D61: 0 | E61: 0 | F61: 0 | G61: 0 | H61: 0 | I61: 0 | J61: 0 | L61: 0
A62: 45 | B62: 0 | C62: 0 | D62: 0 | E62: 0 | F62: 0 | G62: 0 | H62: 0 | I62: 0 | J62: 0 | L62: 0
A63: 46 | B63: 0 | C63: 0 | D63: 0 | E63: 0 | F63: 0 | G63: 0 | H63: 0 | I63: 0 | J63: 0 | L63: 0
A64: 47 | B64: 0 | C64: 0 | D64: 0 | E64: 0 | F64: 0 | G64: 0 | H64: 0 | I64: 0 | J64: 0 | L64: 0
A65: 48 | B65: 0 | C65: 0 | D65: 0 | E65: 0 | F65: 0 | G65: 0 | H65: 0 | I65: 0 | J65: 0 | L65: 0
E66: =SUM(E16:E65) -> 1000 | F66: =SUM(F16:F65) -> 611.5650288 | G66: 1611.565029 | H66: =SUM(H16:H65) -> 168.7051481 | R66: =SUM(R18:R65) -> 1000 | S66: 578.1751521

Sheet Hoja1 (hidden)
M1: =+(1+M2)^12-1 -> 4095 | P1: =+(1+P2)^12-1 -> 4449.971596
M2: =IRR(M4:M39) -> 1 | P2: =IRR(P4:P39) -> 1.0139
C4: =+Simulador!E13 -> 1000 | G4: 0 | I4: =+C4 -> 1000 | M4: =-I4 -> -1000 | P4: =+M4 -> -1000
C5: 1 | G5: =+G4+1 -> 1 | I5: =+I4-J5 -> -60.28069904 | J5: =+L5-K5 -> 1060.280699 | L5: =+C8 -> 1060.280699 | M5: 2000 | N5: =+IF(I4*3.5%>13.9,13.9,I4*3.5%) -> 13.9 | P5: =+M5+N5+O5 -> 2013.9
C6: =+Simulador!E19 -> 101,86% | G6: =+G5+1 -> 2
C7: =+(1+C6)^(1/12)-1 -> 0.06028069904 | G7: 3
C8: =-PMT(C7,C5,C4) -> 1060.280699 | G8: 4
G9: 5
G10: 6
G11: 7
G12: 8
G13: 9
G14: 10
G15: 11
G16: 12
G17: 13
G18: 14
G19: 15
G20: 16
G21: 17
G22: 18
G23: 19
G24: 20
G25: 21
G26: 22
G27: 23
G28: 24
G29: 25
G30: 26
G31: 27
G32: 28
G33: 29
G34: 30
G35: 31
G36: 32
G37: 33
G38: 34
G39: 35

Sheet Cronograma (hidden)
C2: Monto | D2: =+Simulador!E13 -> 1000 | P2: Monto | Q2: =+D2 -> 1000 | T2: Monto Total | V2: =+Q2+D9 -> 1015.9
C3: Nro de Cuotas | D3: =+Simulador!E15 -> 12 | G3: Revolving | P3: Nro de Cuotas | Q3: =+Simulador!E15 -> 12 | T3: Revolving
C4: TEA | D4: =+Simulador!E19 -> 101,86% | G4: Intereses (30 días) >>>> | I4: =+D2*D6*30 -> 60.28069904 | P4: TEA | Q4: =+D4 -> 101,86% | T4: Intereses (30 días) >>>> | V4: =+Q2*Q6*30 -> 60.28069904 | W4: =+V4-S16 -> -7.105427358e-14
C5: TEM | D5: =+(1+D4)^(0.0833333333333333)-1 -> 0.06028069904 | P5: TEM | Q5: =+(1+Q4)^(0.0833333333333333)-1 -> 0.06028069904
C6: Factor Conversión Diaria | D6: =+D5*0.0333333333333333 -> 0.002009356635 | P6: Factor Conversión Diaria | Q6: =+Q5*0.0333333333333333 -> 0.002009356635
C7: Factor Actualización | D7: =SUM(C15:C63) -> 8.37095723 | P7: Factor Actualización
C8: Cuota | D8: =+D2/D7 -> 119.460651 | P8: Cuota
C9: Desgravamen | D9: 15.9 | P9: Desgravamen
C10: Membresía | D10: 68 | J10: >>>> | K10: TCEA | L10: =(1+IRR(L15:L63))^12-1 -> 1.713529593 | P10: Membresía | S10: Pago Mínimo | T10: 30 | W10: >>>> | X10: TCEA | Y10: =(1+IRR(Y15:Y27))^12-1 -> 1.554521387
C11: Cuota TOTAL | D11: =+D8+D9 -> 135.360651 | P11: Cuota TOTAL | S11: Fracción de Capital | T11: 24
A14: # | B14: N° | C14: Factor de Actualización | D14: Capital | E14: Amortización | F14: Interés | G14: Cuota | H14: Desgravamen | I14: Membresía | J14: Cuota Total | N14: # | O14: N° | P14: Factor de Actualización | Q14: Capital | R14: Amortización r | S14: Interés r | T14: Cuota r | U14: Desgravamen | V14: Membresía | W14: Cuota Total
A15: 0 | B15: 0 | D15: =+$D$2 -> 1000 | L15: =-D15 -> -1000 | N15: 0 | O15: 0 | Q15: =+$D$2 -> 1000 | Y15: =-Q15 -> -1000
A16: =+A15+1 -> 1 | B16: =+IF(A16<=$D$3,B15+1,0) -> 1 | C16: =+IF(A16<=$D$3,(1/(1+$D$5)^B16),0) -> 0.9431464714 | D16: =+IF(A16<=$D$3,D15-E16,0) -> 940.8200481 | E16: =IF(A16<=$D$3,G16-F16,0) -> 59.17995194 | F16: =IF(A16<=$D$3,D15*$D$5,0) -> 60.28069904 | G16: =IF(A16<=$D$3,$D$8,0) -> 119.460651 | H16: =IF(D15*3.5%>15.9,15.9,D15*3.5%) -> 15.9 | I16: =IF(OR(B16=12,B16=24,B16=36,B16=48),$D$10,0) -> 0 | J16: =+G16+H16+I16 -> 135.360651 | L16: =+J16 -> 135.360651 | N16: =+N15+1 -> 1 | O16: 1 | Q16: =Q15-R16 -> 958.3333333 | R16: =MIN(MAX(Q15/$T$11,$T$10),Q15) -> 41.66666667 | S16: =Q15*$Q$5 -> 60.28069904 | T16: =+R16+S16 -> 101.9473657 | U16: =IF(Q15*3.5%>13.9,13.9,Q15*3.5%) -> 13.9 | V16: =IF(OR(O16=12,O16=24,O16=36,O16=48),$D$10,0) -> 0 | W16: =+T16+U16+V16 -> 115.8473657 | Y16: =+W16 -> 115.8473657
A17: 2 | B17: 2 | C17: =+IF(A17<=$D$3,(1/(1+$D$5)^B17),0) -> 0.8895252665 | D17: 878.0726873 | E17: 62.74736081 | F17: 56.71329017 | G17: 119.460651 | H17: =IF(D16*3.5%>15.9,15.9,D16*3.5%) -> 15.9 | I17: 0 | J17: 135.360651 | L17: 135.360651 | N17: 2 | O17: 2 | Q17: 918.4027778 | R17: 39.93055556 | S17: 57.76900325 | T17: 97.6995588 | U17: 13.9 | V17: 0 | W17: 111.5995588 | Y17: 111.5995588
A18: 3 | B18: 3 | C18: 0.8389526163 | D18: 811.5428717 | E18: 66.52981558 | F18: 52.9308354 | G18: 119.460651 | H18: 15.9 | I18: 0 | J18: 135.360651 | L18: 135.360651 | N18: 3 | O18: 3 | Q18: 880.1359954 | R18: 38.26678241 | S18: 55.36196145 | T18: 93.62874385 | U18: 13.9 | V18: 0 | W18: 107.5287439 | Y18: 107.5287439
A19: 4 | B19: 4 | C19: 0.7912551998 | D19: 741.0025923 | E19: 70.54027937 | F19: 48.92037161 | G19: 119.460651 | H19: 15.9 | I19: 0 | J19: 135.360651 | L19: 135.360651 | N19: 4 | O19: 4 | Q19: 843.4636622 | R19: 36.67233314 | S19: 53.05521305 | T19: 89.72754619 | U19: 13.9 | V19: 0 | W19: 103.6275462 | Y19: 103.6275462
A20: 5 | B20: 5 | C20: 0.7462695497 | D20: 666.2100956 | E20: 74.79249672 | F20: 44.66815426 | G20: 119.460651 | H20: 15.9 | I20: 0 | J20: 135.360651 | L20: 135.360651 | N20: 5 | O20: 5 | Q20: 808.319343 | R20: 35.14431926 | S20: 50.84457918 | T20: 85.98889844 | U20: 13.9 | V20: 0 | W20: 99.88889844 | Y20: 99.88889844
A21: 6 | B21: 6 | C21: 0.7038414925 | D21: 586.9090549 | E21: 79.30104071 | F21: 40.15961027 | G21: 119.460651 | H21: 15.9 | I21: 0 | J21: 135.360651 | L21: 135.360651 | N21: 6 | O21: 6 | Q21: 774.6393703 | R21: 33.67997262 | S21: 48.72605504 | T21: 82.40602767 | U21: 13.9 | V21: 0 | W21: 96.30602767 | Y21: 96.30602767
A22: 7 | B22: 7 | C22: 0.6638256201 | D22: 502.827692 | E22: 84.08136288 | F22: 35.3792881 | G22: 119.460651 | H22: 15.9 | I22: 0 | J22: 135.360651 | L22: 135.360651 | N22: 7 | O22: 7 | Q22: 742.3627299 | R22: 32.27664043 | S22: 46.69580275 | T22: 78.97244318 | U22: 13.9 | V22: 0 | W22: 92.87244318 | Y22: 92.87244318
A23: 8 | B23: 8 | C23: 0.6260847912 | D23: 413.6778458 | E23: 89.14984621 | F23: 30.31080477 | G23: 119.460651 | H23: 15.9 | I23: 0 | J23: 135.360651 | L23: 135.360651 | N23: 8 | O23: 8 | Q23: 711.4309495 | R23: 30.93178041 | S23: 44.7501443 | T23: 75.68192472 | U23: 13.9 | V23: 0 | W23: 89.58192472 | Y23: 89.58192472
A24: 9 | B24: 9 | C24: 0.5904896616 | D24: 319.1539845 | E24: 94.52386126 | F24: 24.93678972 | G24: 119.460651 | H24: 14.4787246 | I24: 0 | J24: 133.9393756 | L24: 133.9393756 | N24: 9 | O24: 9 | Q24: 681.4309495 | R24: 30 | S24: 42.88555496 | T24: 72.88555496 | U24: 13.9 | V24: 0 | W24: 86.78555496 | Y24: 86.78555496
A25: 10 | B25: 10 | C25: 0.5569182407 | D25: 218.9321588 | E25: 100.2218257 | F25: 19.23882529 | G25: 119.460651 | H25: =IF(D24*3.5%>15.9,15.9,D24*3.5%) -> 11.17038946 | I25: 0 | J25: 130.6310404 | L25: 130.6310404 | N25: 10 | O25: 10 | Q25: 651.4309495 | R25: 30 | S25: 41.07713399 | T25: 71.07713399 | U25: 13.9 | V25: 0 | W25: 84.97713399 | Y25: 84.97713399
A26: 11 | B26: 11 | C26: 0.5252554736 | D26: 112.6688914 | E26: 106.2632674 | F26: 13.19738358 | G26: 119.460651 | H26: 7.66262556 | I26: 0 | J26: 127.1232765 | L26: 127.1232765 | N26: 11 | O26: 11 | Q26: 621.4309495 | R26: 30 | S26: 39.26871301 | T26: 69.26871301 | U26: 13.9 | V26: 0 | W26: 83.16871301 | Y26: 83.16871301
A27: 12 | B27: 12 | C27: 0.4953928465 | D27: 5.826450433e-13 | E27: 112.6688914 | F27: 6.791759536 | G27: 119.460651 | H27: 3.9434112 | I27: 68 | J27: 191.4040622 | L27: 191.4040622 | N27: 12 | O27: 12 | Q27: 0 | R27: =+Q26 -> 621.4309495 | S27: 37.46029204 | T27: 658.8912415 | U27: 13.9 | V27: 68 | W27: 740.7912415 | Y27: 740.7912415
A28: 13 | B28: 0 | C28: 0 | D28: 0 | E28: 0 | F28: 0 | G28: 0 | H28: 2.039257652e-14 | I28: 0 | J28: 2.039257652e-14 | L28: 2.039257652e-14
A29: 14 | B29: 0 | C29: 0 | D29: 0 | E29: 0 | F29: 0 | G29: 0 | H29: 0 | I29: 0 | J29: 0 | L29: 0
A30: 15 | B30: 0 | C30: 0 | D30: 0 | E30: 0 | F30: 0 | G30: 0 | H30: 0 | I30: 0 | J30: 0 | L30: 0
A31: 16 | B31: 0 | C31: 0 | D31: 0 | E31: 0 | F31: 0 | G31: 0 | H31: 0 | I31: 0 | J31: 0 | L31: 0
A32: 17 | B32: 0 | C32: 0 | D32: 0 | E32: 0 | F32: 0 | G32: 0 | H32: 0 | I32: 0 | J32: 0 | L32: 0
A33: 18 | B33: 0 | C33: 0 | D33: 0 | E33: 0 | F33: 0 | G33: 0 | H33: 0 | I33: 0 | J33: 0 | L33: 0
A34: 19 | B34: 0 | C34: 0 | D34: 0 | E34: 0 | F34: 0 | G34: 0 | H34: 0 | I34: 0 | J34: 0 | L34: 0
A35: 20 | B35: 0 | C35: 0 | D35: 0 | E35: 0 | F35: 0 | G35: 0 | H35: 0 | I35: 0 | J35: 0 | L35: 0
A36: 21 | B36: 0 | C36: 0 | D36: 0 | E36: 0 | F36: 0 | G36: 0 | H36: 0 | I36: 0 | J36: 0 | L36: 0
A37: 22 | B37: 0 | C37: 0 | D37: 0 | E37: 0 | F37: 0 | G37: 0 | H37: 0 | I37: 0 | J37: 0 | L37: 0
A38: 23 | B38: 0 | C38: 0 | D38: 0 | E38: 0 | F38: 0 | G38: 0 | H38: 0 | I38: 0 | J38: 0 | L38: 0
A39: 24 | B39: 0 | C39: 0 | D39: 0 | E39: 0 | F39: 0 | G39: 0 | H39: 0 | I39: 0 | J39: 0 | L39: 0
A40: 25 | B40: 0 | C40: 0 | D40: 0 | E40: 0 | F40: 0 | G40: 0 | H40: 0 | I40: 0 | J40: 0 | L40: 0
A41: 26 | B41: 0 | C41: 0 | D41: 0 | E41: 0 | F41: 0 | G41: 0 | H41: 0 | I41: 0 | J41: 0 | L41: 0
A42: 27 | B42: 0 | C42: 0 | D42: 0 | E42: 0 | F42: 0 | G42: 0 | H42: 0 | I42: 0 | J42: 0 | L42: 0
A43: 28 | B43: 0 | C43: 0 | D43: 0 | E43: 0 | F43: 0 | G43: 0 | H43: 0 | I43: 0 | J43: 0 | L43: 0
A44: 29 | B44: 0 | C44: 0 | D44: 0 | E44: 0 | F44: 0 | G44: 0 | H44: 0 | I44: 0 | J44: 0 | L44: 0
A45: 30 | B45: 0 | C45: 0 | D45: 0 | E45: 0 | F45: 0 | G45: 0 | H45: 0 | I45: 0 | J45: 0 | L45: 0
A46: 31 | B46: 0 | C46: 0 | D46: 0 | E46: 0 | F46: 0 | G46: 0 | H46: 0 | I46: 0 | J46: 0 | L46: 0
A47: 32 | B47: 0 | C47: 0 | D47: 0 | E47: 0 | F47: 0 | G47: 0 | H47: 0 | I47: 0 | J47: 0 | L47: 0
A48: 33 | B48: 0 | C48: 0 | D48: 0 | E48: 0 | F48: 0 | G48: 0 | H48: 0 | I48: 0 | J48: 0 | L48: 0
A49: 34 | B49: 0 | C49: 0 | D49: 0 | E49: 0 | F49: 0 | G49: 0 | H49: 0 | I49: 0 | J49: 0 | L49: 0
A50: 35 | B50: 0 | C50: 0 | D50: 0 | E50: 0 | F50: 0 | G50: 0 | H50: 0 | I50: 0 | J50: 0 | L50: 0
A51: 36 | B51: 0 | C51: 0 | D51: 0 | E51: 0 | F51: 0 | G51: 0 | H51: 0 | I51: 0 | J51: 0 | L51: 0
A52: 37 | B52: 0 | C52: 0 | D52: 0 | E52: 0 | F52: 0 | G52: 0 | H52: 0 | I52: 0 | J52: 0 | L52: 0
A53: 38 | B53: 0 | C53: 0 | D53: 0 | E53: 0 | F53: 0 | G53: 0 | H53: 0 | I53: 0 | J53: 0 | L53: 0
A54: 39 | B54: 0 | C54: 0 | D54: 0 | E54: 0 | F54: 0 | G54: 0 | H54: 0 | I54: 0 | J54: 0 | L54: 0
A55: 40 | B55: 0 | C55: 0 | D55: 0 | E55: 0 | F55: 0 | G55: 0 | H55: 0 | I55: 0 | J55: 0 | L55: 0
A56: 41 | B56: 0 | C56: 0 | D56: 0 | E56: 0 | F56: 0 | G56: 0 | H56: 0 | I56: 0 | J56: 0 | L56: 0
A57: 42 | B57: 0 | C57: 0 | D57: 0 | E57: 0 | F57: 0 | G57: 0 | H57: 0 | I57: 0 | J57: 0 | L57: 0
A58: 43 | B58: 0 | C58: 0 | D58: 0 | E58: 0 | F58: 0 | G58: 0 | H58: 0 | I58: 0 | J58: 0 | L58: 0
A59: 44 | B59: 0 | C59: 0 | D59: 0 | E59: 0 | F59: 0 | G59: 0 | H59: 0 | I59: 0 | J59: 0 | L59: 0
A60: 45 | B60: 0 | C60: 0 | D60: 0 | E60: 0 | F60: 0 | G60: 0 | H60: 0 | I60: 0 | J60: 0 | L60: 0
A61: 46 | B61: 0 | C61: 0 | D61: 0 | E61: 0 | F61: 0 | G61: 0 | H61: 0 | I61: 0 | J61: 0 | L61: 0
A62: 47 | B62: 0 | C62: 0 | D62: 0 | E62: 0 | F62: 0 | G62: 0 | H62: 0 | I62: 0 | J62: 0 | L62: 0
A63: 48 | B63: 0 | C63: 0 | D63: 0 | E63: 0 | F63: 0 | G63: 0 | H63: 0 | I63: 0 | J63: 0 | L63: 0
E64: =SUM(E16:E63) -> 1000 | F64: =SUM(F16:F63) -> 433.5278117 | G64: 1433.527812 | H64: =SUM(H16:H63) -> 164.4551508 | R64: =SUM(R16:R63) -> 1000 | S64: 578.1751521

Sheet Etiquetas (hidden)
B4: TIPO DE COMPRA | E4: PAGO | H4: TARJETA | K4: EECC FISICO | M4: TIPO PRODUCTO
B5: Tienda Ripley | E5: Compra en cuotas | H5: Tarjeta Ripley Clásica | K5: SI | M5: Mercadería en general (Ripley)
B6: Viajes Ripley | E6: Revolvente | H6: Tarjeta Ripley MasterCard | K6: NO | M6: Electrohogar y/o Decohogar (Ripley)
B7: Establecimientos Afiliados | E7: Pago diferido | H7: Tarjeta Ripley Gold MasterCard | M7: Establecimientos Afiliados
B8: Ripley.com y/o Ripley App
E12: Revolving | H12: Cuotas | N12: NUEVO
B13: Tarjeta Ripley Clásica | C13: TEA | E13: Tarjeta Ripley MasterCard | F13: TEA | H13: Tarjeta Ripley MasterCard | I13: TEA | K13: Tarjeta Ripley Gold MasterCard | L13: TEA | N13: Tarjeta Ripley MasterCard | O13: TEA
B14: Mercadería en general | C14: 1.0186 | E14: Mercadería en general | F14: 1.0186 | H14: Mercadería en general | I14: 1.0186 | K14: Mercadería en general | L14: 1.0186 | N14: Mercadería en general | O14: 1.0186
B15: Electro y computo | C15: 1.0186 | E15: Electro y computo | F15: 1.0186 | H15: Electro y computo | I15: 1.0186 | K15: Electro y computo | L15: 1.0186 | N15: Electro y computo | O15: 1.0186
B16: Muebles, colchones y alfombras | C16: 1.0186 | E16: Muebles , colchones y alfombras | F16: 1.0186 | H16: Muebles, colchones y alfombras | I16: 1.0186 | K16: Muebles, colchones y alfombras | L16: 1.0186 | N16: Muebles, colchones y alfombras | O16: 1.0186
B17: Viajes Ripley | C17: 1.0186 | E17: Viajes Ripley | F17: 0.77 | H17: Viajes Ripley | I17: 0.77 | K17: Viajes Ripley | L17: 0.77 | N17: Viajes Ripley | O17: 0.77
B18: Establecimientos Afiliados | C18: 1.0186 | E18: Establecimientos Afiliados | F18: 1.0186 | H18: Establecimientos Afiliados | I18: 1.0186 | K18: Establecimientos Afiliados | L18: 1.0186 | N18: Establecimientos Afiliados Revolvente | O18: 1.0186
B19: Revolvente | C19: 1.0186 | E19: Revolvente | F19: 1.0186 | H19: Revolvente | I19: 1.0186 | K19: Revolvente | L19: 1.0186 | N19: Establecimientos Afiliados Cuotas | O19: 1.0186
N20: Revolvente | O20: 1.0186
B24: Revolvente | E24: Cuotas
B25: 1 | E25: =1+1 -> 2
E26: =+E25+1 -> 3
E27: 4
E28: 5
E29: 6
E30: 7
E31: 8
E32: 9
E33: 10
E34: 11
E35: 12
E36: 13
E37: 14
E38: 15
E39: 16
E40: 17
E41: 18
E42: 19
E43: 20
E44: 21
E45: 22
E46: 23
E47: 24
E48: 25
E49: 26
E50: 27
E51: 28
E52: 29
E53: 30
E54: 31
E55: 32
E56: 33
E57: 34
E58: 35
E59: 36
E60: 37
E61: 38
E62: 39
E63: 40
E64: 41
E65: 42
E66: 43
E67: 44
E68: 45
E69: 46
E70: 47
E71: 48

Sheet formulas y ejemplos (hidden)
A2: TEA | B2: =+Cronograma!D4 -> 101,86% | D2: dias | E2: 30
A3: TEM | B3: =+(1+B2)^(0.0833333333333333)-1 -> 0.06028069904 | C3: =1000*B3 -> 60.28069904
A4: TED | B4: =+(1+B3)^(1/30)-1 -> 0.001953027461
A5: factor diario (30d) | B5: =1/((1+B4)^E2) -> 0.9431464714
A8: Fecha consumo | B8: Cierre de Facturación | C8: Fecha de Pago | D8: Días | E8: Factor Diario
A9: 2024-01-02 | B9: 2024-01-10 | C9: 2024-02-05 | D9: 30 | E9: =1/((1+$B$4)^D9) -> 0.9431464714
A10: =+A9 -> 2024-01-02 | B10: 2024-02-09 | C10: 2024-03-05 | D10: 60 | E10: =1/((1+$B$4)^D10) -> 0.8895252665
A11: =+A10 -> 2024-01-02 | B11: 2024-03-11 | C11: 2024-04-05 | D11: 90 | E11: =1/((1+$B$4)^D11) -> 0.8389526163
A12: 2024-01-02 | B12: 2024-04-10 | C12: 2024-05-05 | D12: 120 | E12: 0.7912551998
A13: 2024-01-02 | B13: 2024-05-10 | C13: 2024-06-05 | D13: 150 | E13: 0.7462695497
A14: 2024-01-02 | B14: 2024-06-10 | C14: 2024-07-05 | D14: 180 | E14: 0.7038414925
A15: 2024-01-02 | B15: 2024-07-10 | C15: 2024-08-05 | D15: 210 | E15: 0.6638256201
A16: 2024-01-02 | B16: 2024-08-09 | C16: 2024-09-05 | D16: 240 | E16: 0.6260847912
A17: 2024-01-02 | B17: 2024-09-10 | C17: 2024-10-05 | D17: 270 | E17: 0.5904896616
A18: 2024-01-02 | B18: 2024-10-10 | C18: 2024-11-05 | D18: 300 | E18: 0.5569182407
A19: 2024-01-02 | B19: 2024-11-11 | C19: 2024-12-05 | D19: 330 | E19: 0.5252554736
A20: 2024-01-02 | B20: 2024-12-10 | C20: 2025-01-05 | D20: 360 | E20: 0.4953928465
E21: =+SUM(E9:E20) -> 8.37095723
A24: valor de la cuota | B24: =1000/E21 -> 119.460651
A25: interes | B25: =1000*(((1+B4)^30)-1) -> 60.28069904
A26: principal | B26: =+B24-B25 -> 59.17995194
A27: pago mensual | B27: =+B26+B25+15.9 -> 135.360651
A29: Fecha consumo | B29: Cierre de Facturación | C29: Fecha de Pago | D29: Días | E29: Saldo Capital | F29: Amortizacion | G29: Interés | H29: Cuota | I29: Seguro de degravamen | J29: Membresía | K29: Pago mensual
A30: =+A9 -> 2024-01-02 | B30: =+B9 -> 2024-01-10 | C30: =+C9 -> 2024-02-05 | D30: =+D9 -> 30 | E30: =+Cronograma!D15 -> 1000 | F30: =+Cronograma!E16 -> 59.17995194 | G30: =+Cronograma!F16 -> 60.28069904 | H30: =+Cronograma!G16 -> 119.460651 | I30: =+Cronograma!H16 -> 15.9 | J30: =+Cronograma!I16 -> 0 | K30: =+Cronograma!J16 -> 135.360651
A31: =+A10 -> 2024-01-02 | B31: 2024-02-09 | C31: 2024-03-05 | D31: 60 | E31: =+Cronograma!D16 -> 940.8200481 | F31: =+Cronograma!E17 -> 62.74736081 | G31: =+Cronograma!F17 -> 56.71329017 | H31: =+Cronograma!G17 -> 119.460651 | I31: =+Cronograma!H17 -> 15.9 | J31: =+Cronograma!I17 -> 0 | K31: =+Cronograma!J17 -> 135.360651
A32: =+A11 -> 2024-01-02 | B32: 2024-03-11 | C32: 2024-04-05 | D32: 90 | E32: =+Cronograma!D17 -> 878.0726873 | F32: =+Cronograma!E18 -> 66.52981558 | G32: =+Cronograma!F18 -> 52.9308354 | H32: =+Cronograma!G18 -> 119.460651 | I32: =+Cronograma!H18 -> 15.9 | J32: =+Cronograma!I18 -> 0 | K32: =+Cronograma!J18 -> 135.360651
A33: =+A12 -> 2024-01-02 | B33: 2024-04-10 | C33: 2024-05-05 | D33: 120 | E33: =+Cronograma!D18 -> 811.5428717 | F33: =+Cronograma!E19 -> 70.54027937 | G33: =+Cronograma!F19 -> 48.92037161 | H33: =+Cronograma!G19 -> 119.460651 | I33: =+Cronograma!H19 -> 15.9 | J33: =+Cronograma!I19 -> 0 | K33: =+Cronograma!J19 -> 135.360651
A34: =+A13 -> 2024-01-02 | B34: 2024-05-10 | C34: 2024-06-05 | D34: 150 | E34: =+Cronograma!D19 -> 741.0025923 | F34: =+Cronograma!E20 -> 74.79249672 | G34: =+Cronograma!F20 -> 44.66815426 | H34: =+Cronograma!G20 -> 119.460651 | I34: =+Cronograma!H20 -> 15.9 | J34: =+Cronograma!I20 -> 0 | K34: =+Cronograma!J20 -> 135.360651
A35: =+A14 -> 2024-01-02 | B35: 2024-06-10 | C35: 2024-07-05 | D35: 180 | E35: =+Cronograma!D20 -> 666.2100956 | F35: =+Cronograma!E21 -> 79.30104071 | G35: =+Cronograma!F21 -> 40.15961027 | H35: =+Cronograma!G21 -> 119.460651 | I35: =+Cronograma!H21 -> 15.9 | J35: =+Cronograma!I21 -> 0 | K35: =+Cronograma!J21 -> 135.360651
A36: =+A15 -> 2024-01-02 | B36: 2024-07-10 | C36: 2024-08-05 | D36: 210 | E36: =+Cronograma!D21 -> 586.9090549 | F36: =+Cronograma!E22 -> 84.08136288 | G36: =+Cronograma!F22 -> 35.3792881 | H36: =+Cronograma!G22 -> 119.460651 | I36: =+Cronograma!H22 -> 15.9 | J36: =+Cronograma!I22 -> 0 | K36: =+Cronograma!J22 -> 135.360651
A37: =+A16 -> 2024-01-02 | B37: 2024-08-09 | C37: 2024-09-05 | D37: 240 | E37: =+Cronograma!D22 -> 502.827692 | F37: =+Cronograma!E23 -> 89.14984621 | G37: =+Cronograma!F23 -> 30.31080477 | H37: =+Cronograma!G23 -> 119.460651 | I37: =+Cronograma!H23 -> 15.9 | J37: =+Cronograma!I23 -> 0 | K37: =+Cronograma!J23 -> 135.360651
A38: =+A17 -> 2024-01-02 | B38: 2024-09-10 | C38: 2024-10-05 | D38: 270 | E38: =+Cronograma!D23 -> 413.6778458 | F38: =+Cronograma!E24 -> 94.52386126 | G38: =+Cronograma!F24 -> 24.93678972 | H38: =+Cronograma!G24 -> 119.460651 | I38: =+Cronograma!H24 -> 14.4787246 | J38: =+Cronograma!I24 -> 0 | K38: =+Cronograma!J24 -> 133.9393756
A39: =+A18 -> 2024-01-02 | B39: 2024-10-10 | C39: 2024-11-05 | D39: 300 | E39: =+Cronograma!D24 -> 319.1539845 | F39: =+Cronograma!E25 -> 100.2218257 | G39: =+Cronograma!F25 -> 19.23882529 | H39: =+Cronograma!G25 -> 119.460651 | I39: =+Cronograma!H25 -> 11.17038946 | J39: =+Cronograma!I25 -> 0 | K39: =+Cronograma!J25 -> 130.6310404
A40: =+A19 -> 2024-01-02 | B40: 2024-11-11 | C40: 2024-12-05 | D40: 330 | E40: =+Cronograma!D25 -> 218.9321588 | F40: =+Cronograma!E26 -> 106.2632674 | G40: =+Cronograma!F26 -> 13.19738358 | H40: =+Cronograma!G26 -> 119.460651 | I40: =+Cronograma!H26 -> 7.66262556 | J40: =+Cronograma!I26 -> 0 | K40: =+Cronograma!J26 -> 127.1232765
A41: =+A20 -> 2024-01-02 | B41: 2024-12-10 | C41: 2025-01-05 | D41: 360 | E41: =+Cronograma!D26 -> 112.6688914 | F41: =+Cronograma!E27 -> 112.6688914 | G41: =+Cronograma!F27 -> 6.791759536 | H41: =+Cronograma!G27 -> 119.460651 | I41: =+Cronograma!H27 -> 3.9434112 | J41: =+Cronograma!I27 -> 68 | K41: =+Cronograma!J27 -> 191.4040622
A44: INCUMPLIMIENTO DE PAGO
A46: Nro | B46: Fecha Vencimiento incumplida | C46: Siguiente vencimineto | D46: Dias atraso | E46: Pago mensual vencido | F46: Interes compensatorio Corrido | G46: Pago
A47: 1er Vencimiento | B47: =+C33 -> 2024-05-05 | C47: =+C34 -> 2024-06-05 | D47: =C47-B47 -> 31 | E47: =+K33 -> 135.360651 | F47: =F33*((1+$B$4)^D47-1) -> 4.398289151 | G47: =E47+F47 -> 139.7589401
A48: 2do Vencimiento | B48: =+C34 -> 2024-06-05 | C48: =+C35 -> 2024-07-05 | D48: =C48-B48 -> 30 | E48: =+K34 -> 135.360651 | F48: =F34*((1+$B$4)^D48-1) -> 4.508543986 | G48: =E48+F48 -> 139.869195
A49: 3er Vencimiento | B49: 2024-07-05 | C49: 2024-08-05 | D49: =C49-B49 -> 31 | E49: 135.360651 | F49: =F35*((1+$B$4)^D49-1) -> 4.944535379 | G49: 140.3051864
E50: =SUM(E47:E49) -> 406.0819529 | F50: =SUM(F47:F49) -> 13.85136852 | G50: =SUM(G47:G49) -> 419.9333215
A53: Nro | B53: Fecha Vencimiento incumplida | C53: Siguiente vencimineto | D53: Dias atraso | E53: Pago mensual vencido | F53: Interes compensatorio Corrido | G53: Pago
A54: 1er Vencimiento | B54: 2023-11-05 | C54: 2023-12-05 | D54: 6 | E54: =+K33 -> 135.360651 | F54: =F40*((1+$B$4)^D54-1) -> 1.251306157 | G54: =E54+F54 -> 136.6119571 | H54: =+E54+E54+F54 -> 271.9726081
A58: impuesto transacciones financieras: | D58: =+K33*0.005% -> 0.006768032549
A60: Revolvente
A61: Amortizacion revolvente | B61: =1000/24 -> 41.66666667
A62: Interés | B62: =+E30*B3 -> 60.28069904
A63: Pago minimo | B63: =+B61+B62+15.9 -> 117.8473657
